bitfinex-derivatives/quotes_BTCF0:USTF0_20250918
["timestamp","ask_amount","ask_price","bid_price","bid_amount"]
[1758201037289,0.26483,117340.0,117330.0,2.31952893]
[1758201039093,0.26483,117340.0,117330.0,2.4267934]
[1758201039295,0.01483,117340.0,117330.0,2.4267934]
[1758201040590,0.01483,117340.0,117330.0,2.31952893]
[1758201041595,0.01483,117340.0,117330.0,2.4267934]
[1758201041798,0.01483,117340.0,117330.0,2.31952893]
[1758201043997,0.01483,117340.0,117330.0,2.03712937]
[1758201044195,0.01483,117340.0,117330.0,2.31952893]
[1758201045894,0.01483,117340.0,117330.0,2.42682864]
[1758201050497,0.01483,117340.0,117330.0,3.02716659]
[1758201050704,0.01483,117340.0,117330.0,3.11235229]
[1758201050895,0.01483,117340.0,117330.0,3.21822258]
[1758201051096,0.01483,117340.0,117330.0,3.32552229]
[1758201051301,0.01483,117340.0,117330.0,3.24033659]
[1758201052906,0.01483,117340.0,117330.0,3.13303688]
[1758201054110,0.01483,117340.0,117330.0,3.24033659]
[1758201054614,0.01483,117340.0,117330.0,3.13303688]
[1758201055306,0.01483,117340.0,117330.0,3.24033659]
[1758201057609,0.01483,117340.0,117330.0,3.13303688]
[1758201057909,0.01483,117340.0,117330.0,3.28618402]
[1758201059311,0.01483,117340.0,117330.0,3.13303688]
[1758201060106,0.01483,117340.0,117330.0,3.28618402]
[1758201061115,0.01483,117340.0,117330.0,3.13303688]
[1758201063615,0.01483,117340.0,117330.0,2.88303688]
[1758201065512,0.01483,117340.0,117330.0,2.99016576]
[1758201066419,0.01483,117340.0,117330.0,2.21344576]
[1758201066710,0.01483,117340.0,117330.0,2.99308576]
[1758201068423,0.01483,117340.0,117330.0,2.88595688]
[1758201069013,0.01383,117340.0,117330.0,2.88695688]
[1758201069208,0.01383,117340.0,117330.0,2.88795688]
[1758201069917,0.01383,117340.0,117330.0,2.99509677]
[1758201072021,0.01383,117340.0,117330.0,2.21545677]
[1758201072319,0.01383,117340.0,117330.0,2.99489677]
[1758201072521,0.01383,117340.0,117330.0,2.99485677]
[1758201073023,0.01383,117340.0,117330.0,2.88767688]
[1758201075121,0.01383,117340.0,117330.0,2.10831688]
[1758201075321,0.01383,117340.0,117330.0,2.88747688]
[1758201075526,0.01383,117340.0,117330.0,2.10831688]
[1758201075828,0.01383,117340.0,117330.0,2.88747688]
[1758201076424,0.01383,117340.0,117330.0,3.04062402]
[1758201080327,0.00262729,117340.0,117330.0,3.04062402]
[1758201081627,0.00262729,117340.0,117330.0,3.04070402]
[1758201083632,0.00262729,117340.0,117330.0,3.04050402]
[1758201083930,0.00262729,117340.0,117330.0,2.26146402]
[1758201084131,0.00262729,117340.0,117330.0,3.04030402]
[1758201085232,0.00262729,117340.0,117330.0,2.88715688]
[1758201089034,0.00262729,117340.0,117330.0,2.88675688]
[1758201090033,0.00262729,117340.0,117330.0,2.97194238]
[1758201091631,0.00262729,117340.0,117330.0,3.12508952]
[1758201092732,0.00262729,117340.0,117330.0,2.34664952]
[1758201092933,0.00262729,117340.0,117330.0,3.12480952]
[1758201093439,0.00262729,117340.0,117330.0,2.34664952]
[1758201093837,0.00262729,117340.0,117330.0,3.12512952]
[1758201094136,0.00262729,117340.0,117330.0,3.12504952]
[1758201095436,0.00262729,117340.0,117330.0,2.84264996]
[1758201095737,0.00262729,117340.0,117330.0,3.40728416]
[1758201096239,0.00050871,117340.0,117330.0,3.40728416]
[1758201097139,0.00050871,117340.0,117330.0,2.62888416]
[1758201097336,0.00050871,117340.0,117330.0,3.32181866]
[1758201098036,0.00050871,117340.0,117330.0,3.40700396]
[1758201098943,0.00050871,117340.0,117330.0,3.25385682]
[1758201102145,0.00050871,117340.0,117330.0,3.25443591]
[1758201102940,0.00050871,117340.0,117330.0,3.40758305]
[1758201103644,0.01397,117350.0,117330.0,3.40758305]
[1758201103841,0.01397,117350.0,117340.0,1.20783376]
[1758201104036,0.01387,117350.0,117340.0,2.06783376]
[1758201106135,0.01387,117350.0,117340.0,2.2209809]
[1758201106948,0.01387,117350.0,117340.0,2.06783376]
[1758201108943,0.01387,117350.0,117340.0,2.15301206]
[1758201114348,0.01387,117350.0,117340.0,2.3061592]
[1758201115045,0.01387,117350.0,117340.0,2.72967608]
[1758201115245,0.01387,117350.0,117340.0,2.3061592]
[1758201115950,0.01387,117350.0,117340.0,2.15301206]
[1758201118349,0.01387,117350.0,117340.0,2.3061592]
[1758201120647,0.01387,117350.0,117340.0,2.72967608]
[1758201121340,0.01387,117350.0,117340.0,2.3061592]
[1758201124151,0.01387,117350.0,117340.0,1.45912544]
[1758201124355,0.01387,117350.0,117340.0,2.3061592]
[1758201125453,0.01387,117350.0,117340.0,2.80627898]
[1758201125754,0.01387,117350.0,117340.0,2.72967608]
[1758201127351,0.01387,117350.0,117340.0,2.57652894]
[1758201128456,0.01387,117350.0,117340.0,3.35348894]
[1758201128658,0.01387,117350.0,117340.0,2.57652894]
[1758201128953,0.01387,117350.0,117340.0,3.35348894]
[1758201129456,0.01387,117350.0,117340.0,2.92997206]
[1758201129660,0.01387,117350.0,117340.0,2.15301206]
[1758201129850,0.01387,117350.0,117340.0,2.92997206]
[1758201130050,0.01387,117350.0,117340.0,3.35348894]
[1758201130250,0.01387,117350.0,117340.0,2.92997206]
[1758201130453,0.01387,117350.0,117340.0,3.0831192]
[1758201130664,0.01387,117350.0,117340.0,2.3061592]
[1758201130961,0.01387,117350.0,117340.0,3.0831192]
[1758201131652,0.01387,117350.0,117340.0,4.6784392]
[1758201133153,0.01387,117350.0,117340.0,5.10195608]
[1758201133354,0.01393,117360.0,117340.0,5.18713438]
[1758201133553,0.01393,117360.0,117350.0,1.31265301]
[1758201133853,0.01383,117360.0,117350.0,2.15265301]
[1758201134760,0.01383,117360.0,117350.0,2.06748181]
[1758201135065,0.01483,117360.0,117350.0,2.06748181]
[1758201135451,0.01483,117360.0,117350.0,2.22062895]
[1758201137063,0.01483,117360.0,117350.0,2.84444181]
[1758201141155,0.01483,117360.0,117350.0,3.08276015]
[1758201141859,0.01483,117360.0,117350.0,2.92961301]
[1758201142048,0.00294744,117360.0,117350.0,2.92961301]
[1758201142255,0.001,117360.0,117350.0,3.03572301]
[1758201142655,0.01397,117370.0,117360.0,0.0851639]
[1758201142857,4e-05,117370.0,117360.0,1.69948078]
[1758201143059,4e-05,117370.0,117360.0,2.54651454]
[1758201143360,4e-05,117370.0,117360.0,2.95366249]
[1758201143564,4e-05,117370.0,117360.0,2.84651454]
[1758201144064,4e-05,117370.0,117360.0,3.09651454]
[1758201144254,4e-05,117370.0,117360.0,3.24966168]
[1758201144451,4e-05,117370.0,117360.0,4.02654168]
[1758201145162,4e-05,117370.0,117360.0,3.87339454]
[1758201146255,4e-05,117370.0,117360.0,4.08654183]
[1758201146461,4e-05,117370.0,117360.0,3.83654183]
[1758201146764,4e-05,117370.0,117360.0,3.72950454]
[1758201147368,4e-05,117370.0,117360.0,3.97950454]
[1758201148870,4e-05,117370.0,117360.0,3.20362454]
[1758201149065,4e-05,117370.0,117360.0,3.98046454]
[1758201149868,4e-05,117370.0,117360.0,3.98146454]
[1758201151366,4e-05,117370.0,117360.0,3.20462454]
[1758201151567,4e-05,117370.0,117360.0,3.98142454]
[1758201152276,4e-05,117370.0,117360.0,3.20462454]
[1758201152666,4e-05,117370.0,117360.0,3.89622064]
[1758201153168,4e-05,117370.0,117360.0,3.98138454]
[1758201154073,0.01272,117370.0,117360.0,3.98138454]
[1758201154473,0.01272,117370.0,117360.0,3.20462454]
[1758201154665,0.01272,117370.0,117360.0,3.98138454]
[1758201155060,0.01272,117370.0,117360.0,4.08828844]
[1758201155265,4e-05,117370.0,117360.0,4.08828844]
[1758201155965,4e-05,117370.0,117360.0,3.3820384]
[1758201158267,4e-05,117370.0,117360.0,3.4141887]
[1758201159679,0.0001,117380.0,117370.0,0.2982867]
[1758201159973,0.01274,117390.0,117370.0,2.28999916]
[1758201160174,0.01274,117390.0,117380.0,1.778142]
[1758201160376,0.01264,117390.0,117380.0,2.5917806]
[1758201161976,0.01264,117390.0,117380.0,2.69868711]
[1758201162478,0.01364,117390.0,117380.0,2.5917806]
[1758201164072,0.01364,117390.0,117380.0,2.65823908]
[1758201164471,0.01364,117390.0,117380.0,2.76514559]
[1758201165072,0.01364,117390.0,117380.0,2.77345675]
[1758201167182,0.01364,117390.0,117380.0,2.66655024]
[1758201168481,0.01368,117390.0,117380.0,2.66655024]
[1758201170082,0.01368,117390.0,117380.0,1.88987024]
[1758201170285,0.01368,117390.0,117380.0,2.66647024]
[1758201171184,0.01368,117390.0,117380.0,2.77337675]
[1758201171680,0.01368,117390.0,117380.0,2.66647024]
[1758201172785,0.01368,117390.0,117380.0,1.88987024]
[1758201173085,0.01368,117390.0,117380.0,2.66643024]
[1758201174689,0.01368,117390.0,117380.0,2.74295989]
[1758201182301,0.01368,117390.0,117380.0,2.77357176]
[1758201182697,0.01368,117390.0,117380.0,3.05572206]
[1758201182898,0.00104,117390.0,117380.0,3.14087156]
[1758201183093,0.00104,117390.0,117380.0,3.03373004]
[1758201183298,0.00104,117390.0,117380.0,3.13984004]
[1758201183600,0.00104,117390.0,117380.0,2.08112974]
[1758201184003,0.00104,117390.0,117380.0,2.14912738]
[1758201184303,0.00104,117390.0,117380.0,2.92556738]
[1758201185301,0.01411,117390.0,117380.0,2.92556738]
[1758201185498,0.01411,117390.0,117380.0,2.77242024]
[1758201186803,0.01411,117390.0,117380.0,1.99598024]
[1758201186998,0.01411,117390.0,117380.0,2.77238024]
[1758201187305,0.01411,117390.0,117380.0,1.99598024]
[1758201188202,0.01411,117390.0,117380.0,2.77238024]
[1758201188703,0.01411,117390.0,117380.0,1.99598024]
[1758201188898,0.2962603,117390.0,117380.0,1.71382994]
[1758201189103,0.5462603,117390.0,117380.0,1.43267236]
[1758201189303,0.5462603,117390.0,117380.0,2.20903236]
[1758201189598,0.5462603,117390.0,117380.0,1.4243612]
[1758201189798,0.5462603,117390.0,117380.0,2.2007212]
[1758201190104,0.26411,117390.0,117380.0,2.09361848]
[1758201190309,0.26411,117390.0,117380.0,2.45228485]
[1758201190506,0.5462603,117390.0,117380.0,2.45228485]
[1758201192508,0.5462603,117390.0,117380.0,2.46090207]
[1758201194705,0.5462603,117390.0,117380.0,1.32731607]
[1758201194912,0.5462603,117390.0,117380.0,2.10367607]
[1758201195411,0.26411,117390.0,117380.0,2.38582637]
[1758201196511,0.26411,117390.0,117380.0,2.39437302]
[1758201197105,0.5462603,117390.0,117380.0,2.39437302]
[1758201197410,0.5462603,117390.0,117380.0,2.31785695]
[1758201197612,0.5462603,117390.0,117380.0,2.42495967]
[1758201202321,0.26411,117390.0,117380.0,2.42495967]
[1758201202509,0.5462603,117390.0,117380.0,2.42495967]
[1758201202910,0.5462603,117390.0,117380.0,2.41641302]
[1758201203117,0.5462603,117390.0,117380.0,2.13426272]
[1758201203518,0.5462603,117390.0,117380.0,2.02716]
[1758201204417,0.5462603,117390.0,117380.0,2.3093103]
[1758201205120,0.26411,117390.0,117380.0,2.3093103]
[1758201205320,0.5462603,117390.0,117380.0,2.3093103]
[1758201206121,0.5462603,117390.0,117380.0,1.54125001]
[1758201206414,0.5462603,117390.0,117380.0,2.31757001]
[1758201207017,0.5462603,117390.0,117380.0,2.39404114]
[1758201207726,0.01411,117390.0,117380.0,2.76134104]
[1758201208022,0.01411,117390.0,117380.0,3.11844376]
[1758201208214,0.01411,117390.0,117380.0,3.04197263]
[1758201208414,0.00104,117390.0,117380.0,3.54702021]
[1758201208622,0.00104,117390.0,117380.0,3.37097991]
[1758201209020,0.00104,117390.0,117380.0,3.76011882]
[1758201209423,0.00104,117390.0,117380.0,3.69109852]
[1758201209724,0.00104,117390.0,117380.0,3.97324882]
[1758201209725,4e-05,117390.0,117380.0,3.97324882]
[1758201209920,0.00104,117390.0,117380.0,3.97324882]
[1758201210724,0.00104,117390.0,117380.0,3.97424882]
[1758201211021,4e-05,117390.0,117380.0,3.97424882]
[1758201211424,4e-05,117390.0,117380.0,3.86726021]
[1758201211819,0.01278,117400.0,117390.0,0.0851423]
[1758201212019,0.01268,117400.0,117390.0,1.9002429]
[1758201212921,0.01368,117400.0,117390.0,1.9002429]
[1758201215619,0.01368,117400.0,117390.0,2.00715334]
[1758201215823,0.01368,117400.0,117390.0,2.28894872]
[1758201216427,0.00104,117400.0,117390.0,2.96199671]
[1758201216620,0.00104,117400.0,117390.0,3.30073791]
[1758201216920,0.0141,117400.0,117390.0,3.65388992]
[1758201217126,0.0141,117400.0,117390.0,2.87768992]
[1758201217428,0.0141,117400.0,117390.0,3.65388992]
[1758201217923,0.0141,117400.0,117390.0,3.65384992]
[1758201218429,0.0141,117400.0,117390.0,3.54693948]
[1758201218630,0.0141,117400.0,117390.0,3.70008662]
[1758201218830,0.0141,117400.0,117390.0,2.92392662]
[1758201219225,0.0141,117400.0,117390.0,2.83878432]
[1758201219427,0.0141,117400.0,117390.0,3.36490432]
[1758201219929,0.0141,117400.0,117390.0,2.58878432]
[1758201220733,0.0141,117400.0,117390.0,2.94185633]
[1758201220925,0.0141,117400.0,117390.0,2.16573633]
[1758201221135,0.0141,117400.0,117390.0,2.78870919]
[1758201223728,0.0141,117400.0,117390.0,2.01258919]
[1758201224028,0.0141,117400.0,117390.0,2.78866919]
[1758201224426,0.0141,117400.0,117390.0,2.11941945]
[1758201224632,0.0141,117400.0,117390.0,2.89549945]
[1758201228035,0.0141,117400.0,117390.0,2.47245146]
[1758201228229,0.0141,117400.0,117390.0,2.89549945]
[1758201228741,0.0141,117400.0,117390.0,2.78866919]
[1758201231544,0.0141,117400.0,117390.0,2.89549881]
[1758201232045,0.0141,117400.0,117390.0,2.47245082]
[1758201232347,0.0141,117400.0,117390.0,2.89549881]
[1758201233645,0.0141,117400.0,117390.0,2.47245082]
[1758201233944,0.0141,117400.0,117390.0,2.89549881]
[1758201234441,0.43714799,117400.0,117390.0,2.89541881]
[1758201234743,0.43714799,117400.0,117390.0,2.11941881]
[1758201235048,0.0141,117400.0,117390.0,2.89537881]
[1758201235344,0.43714799,117400.0,117390.0,2.89537881]
[1758201236043,1.11019598,117400.0,117390.0,1.69637082]
[1758201236242,1.11019598,117400.0,117390.0,2.15309082]
[1758201238352,0.2641,117400.0,117390.0,2.15309082]
[1758201238652,1.11019598,117400.0,117390.0,2.15309082]
[1758201239655,1.11019598,117400.0,117390.0,2.57613881]
[1758201239854,0.2641,117400.0,117390.0,2.57613881]
[1758201240057,0.68714799,117400.0,117390.0,2.57613881]
[1758201240858,0.2641,117400.0,117390.0,2.15309082]
[1758201241060,0.68714799,117400.0,117390.0,2.57613881]
[1758201242660,0.2641,117400.0,117390.0,2.57613881]
[1758201242860,0.68714799,117400.0,117390.0,2.57613881]
[1758201245560,0.2641,117400.0,117390.0,2.66128141]
[1758201246662,0.0141,117400.0,117390.0,2.66128141]
[1758201246859,0.0141,117400.0,117390.0,3.0843294]
[1758201247051,0.0141,117400.0,117390.0,2.66128141]
[1758201247960,0.0141,117400.0,117390.0,3.16069862]
[1758201248162,0.0141,117400.0,117390.0,2.55445179]
[1758201250966,0.0141,117400.0,117390.0,2.97749978]
[1758201254768,0.0141,117400.0,117390.0,2.96875414]
[1758201255367,0.0141,117400.0,117390.0,2.12265816]
[1758201255563,0.0141,117400.0,117390.0,2.96875414]
[1758201256462,0.0141,117400.0,117390.0,3.05389684]
[1758201256662,0.0141,117400.0,117390.0,2.97749988]
[1758201257268,0.0141,117400.0,117390.0,3.05389079]
[1758201257666,0.0141,117400.0,117390.0,2.97749988]
[1758201258274,0.00104,117400.0,117390.0,3.33443592]
[1758201258673,0.00104,117400.0,117390.0,3.22749988]
[1758201265065,0.00104,117400.0,117390.0,3.30381501]
[1758201265775,0.00104,117400.0,117390.0,3.22749988]
[1758201267178,0.00104,117400.0,117390.0,3.30380471]
[1758201267980,0.00104,117400.0,117390.0,3.22749988]
[1758201268480,0.00104,117400.0,117390.0,3.22725988]
[1758201269270,0.00104,117400.0,117390.0,2.45153988]
[1758201269876,0.00104,117400.0,117390.0,3.22721988]
[1758201270381,0.00104,117400.0,117390.0,3.54645988]
[1758201270578,0.00104,117400.0,117390.0,3.65333501]
[1758201270881,0.00104,117400.0,117390.0,4.076383]
[1758201271174,0.00104,117400.0,117390.0,3.65333501]
[1758201272584,0.0001,117410.0,117400.0,0.0851357]
[1758201272780,0.51278,117420.0,117410.0,0.4043685]
[1758201273080,0.5,117420.0,117410.0,3.26702848]
[1758201273479,0.5,117420.0,117410.0,3.33616005]
[1758201273883,0.5,117420.0,117410.0,2.66739518]
[1758201274183,0.5,117420.0,117410.0,3.44303518]
[1758201274690,0.502,117420.0,117410.0,3.44303518]
[1758201275789,0.502,117420.0,117410.0,3.1607426]
[1758201279085,0.51587,117420.0,117410.0,2.5968192]
[1758201279287,0.51587,117420.0,117410.0,3.1606226]
[1758201279885,0.51587,117420.0,117410.0,2.8787209]
[1758201280392,0.51587,117420.0,117410.0,3.1606226]
[1758201281092,0.51587,117420.0,117410.0,2.3851026]
[1758201281293,0.51587,117420.0,117410.0,3.1605826]
[1758201281593,0.51587,117420.0,117410.0,2.8786809]
[1758201281792,0.51587,117420.0,117410.0,2.77180577]
[1758201282591,0.51587,117420.0,117410.0,1.99632577]
[1758201282793,0.51587,117420.0,117410.0,2.77176577]
[1758201282982,0.51587,117420.0,117410.0,3.05366747]
[1758201284293,0.51587,117420.0,117410.0,3.05362747]
[1758201285193,0.51587,117420.0,117410.0,2.48982407]
[1758201285492,0.51587,117420.0,117410.0,3.05362747]
[1758201285794,0.51587,117420.0,117410.0,3.1298784]
[1758201286489,0.51587,117420.0,117410.0,2.3544784]
[1758201286692,0.51587,117420.0,117410.0,3.1298384]
[1758201287699,0.51587,117420.0,117410.0,2.3544784]
[1758201287896,0.51587,117420.0,117410.0,3.1298384]
[1758201288902,0.51587,117420.0,117410.0,3.05358747]
[1758201289201,0.51587,117420.0,117410.0,3.05354747]
[1758201290101,0.51587,117420.0,117410.0,1.99632577]
[1758201290301,0.51587,117420.0,117410.0,2.77164577]
[1758201291611,0.51587,117420.0,117410.0,2.8784809]
[1758201292705,0.51587,117420.0,117410.0,2.95477322]
[1758201293006,0.51587,117420.0,117410.0,2.84789809]
[1758201294105,0.51587,117420.0,117410.0,3.12979979]
[1758201295998,0.51587,117420.0,117410.0,2.56599639]
[1758201296198,0.51587,117420.0,117410.0,3.12971979]
[1758201296402,0.51587,117420.0,117410.0,3.05342747]
[1758201299415,0.51587,117420.0,117410.0,3.20657461]
[1758201300511,0.51587,117420.0,117410.0,3.05342747]
[1758201303415,0.51387,117420.0,117410.0,3.05342747]
[1758201303805,0.51387,117420.0,117410.0,3.05442747]
[1758201305317,0.51387,117420.0,117410.0,3.20757461]
[1758201306519,0.5,117420.0,117410.0,3.20757461]
[1758201306712,0.5,117420.0,117410.0,2.43237461]
[1758201307023,0.5127,117420.0,117410.0,3.20745461]
[1758201307513,1.0675217,117420.0,117410.0,0.95331871]
[1758201307714,1.0675217,117420.0,117410.0,0.43093157]
[1758201308016,1.3494234,117420.0,117410.0,0.53786245]
[1758201308214,1.3494234,117420.0,117410.0,1.31290245]
[1758201308416,1.6313251,117420.0,117410.0,0.46873088]
[1758201308613,1.6313251,117420.0,117410.0,1.21322075]
[1758201308920,1.6313251,117420.0,117410.0,1.13684]
[1758201309218,1.5313251,117420.0,117410.0,1.13684]
[1758201309417,1.8921251,117420.0,117410.0,0.611]
[1758201309722,0.03562,117400.0,117390.0,0.3608]
[1758201309913,0.5994234,117400.0,117390.0,2.10222075]
[1758201310118,0.5994234,117400.0,117390.0,2.02584]
[1758201310119,0.28562,117400.0,117390.0,2.02584]
[1758201310418,0.02292,117400.0,117390.0,2.47595535]
[1758201310621,0.05278793,117410.0,117400.0,0.0215]
[1758201310812,0.05268793,117410.0,117400.0,1.67040937]
[1758201311910,0.03998793,117410.0,117400.0,1.67040937]
[1758201312117,0.03998793,117410.0,117400.0,1.6880074]
[1758201312420,0.03998793,117410.0,117400.0,1.76421507]
[1758201312819,0.03998793,117410.0,117400.0,2.04611677]
[1758201313016,0.03998793,117410.0,117400.0,1.76421507]
[1758201313212,0.04098793,117410.0,117400.0,1.76421507]
[1758201313417,0.04198793,117410.0,117400.0,1.76421507]
[1758201313620,0.04198793,117410.0,117400.0,2.04611677]
[1758201313819,0.04198793,117410.0,117400.0,1.9699091]
[1758201314213,0.04198793,117410.0,117400.0,1.8847734]
[1758201314523,0.01906793,117410.0,117400.0,2.04605038]
[1758201314725,0.01906793,117410.0,117400.0,1.9699091]
[1758201315624,0.01906793,117410.0,117400.0,1.8847734]
[1758201315818,0.01806793,117410.0,117400.0,1.8847734]
[1758201316430,0.01706793,117410.0,117400.0,1.8857734]
[1758201316726,0.4128,117420.0,117400.0,1.8857734]
[1758201316920,0.4001,117420.0,117410.0,1.5025404]
[1758201317121,0.4,117420.0,117410.0,2.75276862]
[1758201318227,0.4,117420.0,117410.0,2.83789702]
[1758201319030,0.4,117420.0,117410.0,2.75276862]
[1758201319222,0.401,117420.0,117410.0,2.75276862]
[1758201319530,0.401,117420.0,117410.0,2.83789702]
[1758201319726,0.401,117420.0,117410.0,2.83889702]
[1758201319928,0.4,117420.0,117410.0,3.08889702]
[1758201320122,0.08076,117420.0,117410.0,3.34999872]
[1758201320325,0.0001,117430.0,117420.0,0.1152912]
[1758201320630,0.00014,117440.0,117430.0,0.02819]
[1758201320832,4e-05,117440.0,117430.0,1.8427934]
[1758201321221,4e-05,117440.0,117430.0,2.6177934]
[1758201321527,4e-05,117440.0,117430.0,1.5608917]
[1758201321923,4e-05,117440.0,117430.0,2.4209656]
[1758201323234,0.00204,117440.0,117430.0,2.4209656]
[1758201323625,0.00204,117440.0,117430.0,2.4209256]
[1758201324328,0.00204,117440.0,117430.0,1.6460056]
[1758201324534,0.00204,117440.0,117430.0,2.4209256]
[1758201325032,0.00204,117440.0,117430.0,2.49701345]
[1758201325733,0.00204,117440.0,117430.0,2.49697345]
[1758201325932,0.00204,117440.0,117430.0,1.72209345]
[1758201326122,0.00204,117440.0,117430.0,2.49697345]
[1758201327131,0.00204,117440.0,117430.0,1.72209345]
[1758201327435,0.00204,117440.0,117430.0,2.41181955]
[1758201327727,0.00204,117440.0,117430.0,2.49693345]
[1758201328130,0.00204,117440.0,117430.0,2.4208456]
[1758201328526,0.00204,117440.0,117430.0,2.7027473]
[1758201329735,0.00204,117440.0,117430.0,2.77879831]
[1758201330134,0.00204,117440.0,117430.0,2.21499491]
[1758201330325,0.00204,117440.0,117430.0,2.7027473]
[1758201330834,0.00204,117440.0,117430.0,2.41818818]
[1758201331024,0.00204,117440.0,117430.0,3.26899529]
[1758201331230,0.00204,117440.0,117430.0,2.38730441]
[1758201331436,0.00204,117440.0,117430.0,3.16206441]
[1758201332235,0.00204,117440.0,117430.0,2.59826101]
[1758201332437,0.00204,117440.0,117430.0,3.0860173]
[1758201334037,0.00204,117440.0,117430.0,3.0859773]
[1758201334540,0.00204,117440.0,117430.0,2.3112573]
[1758201334837,0.00204,117440.0,117430.0,3.16202441]
[1758201335140,0.00204,117440.0,117430.0,2.38730441]
[1758201335331,0.00204,117440.0,117430.0,3.16202441]
[1758201337641,0.00204,117440.0,117430.0,3.0859773]
[1758201337850,0.00204,117440.0,117430.0,3.3676149]
[1758201338345,0.00204,117440.0,117430.0,4.9617349]
[1758201338937,0.00204,117440.0,117430.0,5.4604698]
[1758201339534,0.00204,117440.0,117430.0,4.6857498]
[1758201339742,0.00204,117440.0,117430.0,5.49130628]
[1758201340142,0.00204,117440.0,117430.0,5.49930628]
[1758201340737,0.00104,117440.0,117430.0,5.84630628]
[1758201340938,0.00104,117440.0,117430.0,6.08630628]
[1758201341145,0.00104,117440.0,117430.0,5.76630628]
[1758201341443,0.00104,117440.0,117430.0,6.10630628]
[1758201342040,0.00104,117440.0,117430.0,5.33166628]
[1758201342445,0.00104,117440.0,117430.0,6.10622628]
[1758201342742,0.00104,117440.0,117430.0,5.9992954]
[1758201342934,0.00104,117440.0,117430.0,5.24436453]
[1758201343339,0.00104,117440.0,117430.0,6.01892453]
[1758201344547,0.00014,117450.0,117440.0,0.0851067]
[1758201344749,4e-05,117450.0,117440.0,2.5829582]
[1758201344946,4e-05,117450.0,117440.0,2.68955725]
[1758201345748,4e-05,117450.0,117440.0,3.46407725]
[1758201346346,4e-05,117450.0,117440.0,3.46907725]
[1758201347051,4e-05,117450.0,117440.0,2.69455725]
[1758201347247,4e-05,117450.0,117440.0,3.46907725]
[1758201347440,4e-05,117450.0,117440.0,3.46903725]
[1758201347949,4e-05,117450.0,117440.0,3.47303725]
[1758201348947,0.01705817,117460.0,117450.0,0.0937697]
[1758201349143,0.01695817,117460.0,117450.0,2.1112707]
[1758201349551,0.01695817,117460.0,117450.0,2.21786975]
[1758201349952,0.01695817,117460.0,117450.0,2.1112707]
[1758201350252,0.01695817,117460.0,117450.0,2.21788639]
[1758201350552,0.01695817,117460.0,117450.0,2.21988639]
[1758201351351,0.01695817,117460.0,117450.0,2.22088639]
[1758201351644,0.01695817,117460.0,117450.0,2.99528639]
[1758201352950,0.01695817,117460.0,117450.0,3.00364194]
[1758201353551,0.01695817,117460.0,117450.0,2.89702625]
[1758201354249,0.01695817,117460.0,117450.0,2.96366979]
[1758201354444,0.01695817,117460.0,117450.0,2.18930979]
[1758201354645,0.01695817,117460.0,117450.0,2.87857009]
[1758201354950,0.01695817,117460.0,117450.0,2.95470325]
[1758201355951,0.01695817,117460.0,117450.0,2.18034325]
[1758201356450,0.01378,117470.0,117450.0,3.03976295]
[1758201356649,0.03613,117470.0,117460.0,1.227771]
[1758201356843,0.03603,117470.0,117460.0,2.137771]
[1758201357450,0.03603,117470.0,117460.0,2.912051]
[1758201357847,0.03603,117470.0,117460.0,2.913051]
[1758201358148,0.03603,117470.0,117460.0,2.98918416]
[1758201358440,0.03603,117470.0,117460.0,2.99018416]
[1758201358945,0.03603,117470.0,117460.0,2.914051]
[1758201360349,0.03548,117470.0,117460.0,2.139771]
[1758201360553,0.28548,117470.0,117460.0,2.06857]
[1758201360742,0.7082005,117470.0,117460.0,1.7170505]
[1758201360939,0.7082005,117470.0,117460.0,2.06857]
[1758201361142,0.7082005,117470.0,117460.0,1.90857]
[1758201361547,0.7082005,117470.0,117460.0,1.88704]
[1758201362252,0.7082005,117470.0,117460.0,2.3097605]
[1758201362854,0.28548,117470.0,117460.0,2.3097605]
[1758201363153,0.7082005,117470.0,117460.0,2.3097605]
[1758201364854,0.7082005,117470.0,117460.0,2.732481]
[1758201365055,0.28548,117470.0,117460.0,2.3097605]
[1758201365253,0.7082005,117470.0,117460.0,1.96317316]
[1758201365553,0.7082005,117470.0,117460.0,2.80861416]
[1758201366155,0.28548,117470.0,117460.0,2.66861416]
[1758201366353,0.03548,117470.0,117460.0,2.98861416]
[1758201366547,0.02239,117470.0,117460.0,2.99728416]
[1758201367152,0.03548,117470.0,117460.0,1.36893316]
[1758201367454,0.4582005,117470.0,117460.0,2.14313316]
[1758201367653,0.4582005,117470.0,117460.0,2.56585366]
[1758201368051,0.03548,117470.0,117460.0,2.56585366]
[1758201368356,0.4582005,117470.0,117460.0,2.98857416]
[1758201369451,0.03548,117470.0,117460.0,2.98857416]
[1758201369650,0.4582005,117470.0,117460.0,2.98857416]
[1758201370752,0.02239,117470.0,117460.0,2.99724416]
[1758201371347,0.03548,117470.0,117460.0,2.98857416]
[1758201372557,0.03548,117470.0,117460.0,2.912441]
[1758201373057,0.4582005,117470.0,117460.0,2.912441]
[1758201373754,0.4582005,117470.0,117460.0,1.2928]
[1758201373946,1.130921,117470.0,117460.0,1.2928]
[1758201374145,0.7082005,117470.0,117460.0,2.14327794]
[1758201374358,0.7082005,117470.0,117460.0,2.06696]
[1758201375556,0.28548,117470.0,117460.0,2.06696]
[1758201375758,0.7082005,117470.0,117460.0,2.06696]
[1758201376156,0.7082005,117470.0,117460.0,2.14327794]
[1758201376559,0.7082005,117470.0,117460.0,2.56599844]
[1758201382357,0.7082005,117470.0,117460.0,2.14327794]
[1758201382858,0.880921,117470.0,117460.0,2.06692]
[1758201385573,0.880921,117470.0,117460.0,1.2928]
[1758201385773,0.880921,117470.0,117460.0,2.06692]
[1758201385974,1.5536415,117470.0,117460.0,1.2928]
[1758201386174,1.5536415,117470.0,117460.0,2.06692]
[1758201386375,1.5536415,117470.0,117460.0,2.03192]
[1758201386576,1.130921,117470.0,117460.0,2.03192]
[1758201387469,1.130921,117470.0,117460.0,1.2578]
[1758201387668,1.9144415,117470.0,117460.0,1.70512]
[1758201387974,1.9834696,117470.0,117460.0,0.93]
[1758201390571,1.5607491,117470.0,117460.0,0.93]
[1758201393082,2.7581096,117470.0,117460.0,0.93]
[1758201393382,2.7591096,117470.0,117460.0,0.93]
[1758201393580,2.3363891,117470.0,117460.0,0.93]
[1758201393783,2.3364291,117470.0,117460.0,0.93]
[1758201393980,2.7581496,117470.0,117460.0,0.93]